bitfinex-derivatives/quotes_SOLF0:USTF0_20260213
["timestamp","ask_amount","ask_price","bid_price","bid_amount"]
[1770942548427,102.46,77.929,77.872,3.03610677]
[1770942548428,3.94850687,77.899,77.872,3.03610677]
[1770942548621,3.94850687,77.899,77.853,0.98680095]
[1770942554124,3.94850687,77.899,77.86,3.37640963]
[1770942554927,3.94850687,77.899,77.86,3.37839189]
[1770942556431,3.94850687,77.899,77.853,0.98680095]
[1770942558133,3.94850687,77.899,77.854,11.5699]
[1770942558334,3.94850687,77.899,77.855,0.83221561]
[1770942558632,14.94149189,77.9,77.855,0.83221561]
[1770942558633,3.94850687,77.897,77.855,0.83221561]
[1770942559435,3.94850687,77.897,77.856,11.5695]
[1770942561030,102.48,77.919,77.847,11.5709]
[1770942561031,3.37839189,77.89,77.847,11.5709]
[1770942561231,3.94850687,77.889,77.847,11.5709]
[1770942562038,3.94850687,77.889,77.851,0.82162696]
[1770942564934,3.94850687,77.889,77.852,0.73661176]
[1770942565439,3.94850687,77.88,77.827,2.97121993]
[1770942565641,3.94850687,77.869,77.816,0.73661176]
[1770942566030,3.94850687,77.869,77.821,0.73661176]
[1770942566833,3.94850687,77.869,77.823,0.80530092]
[1770942569039,3.94850687,77.869,77.83,4.29464599]
[1770942569240,3.94850687,77.869,77.831,0.9162541]
[1770942569644,3.94850687,77.869,77.833,11.5729]
[1770942570347,3.94850687,77.869,77.831,12.4894541]
[1770942572444,3.94850687,77.869,77.824,0.84335503]
[1770942573348,3.94850687,77.869,77.822,11.5745]
[1770942573943,3.37839189,77.86,77.813,0.84109667]
[1770942574143,3.86411069,77.859,77.813,0.84109667]
[1770942578847,3.86411069,77.859,77.816,0.86610808]
[1770942579447,3.86411069,77.887,77.821,0.86610808]
[1770942579644,3.86411069,77.879,77.831,0.86610808]
[1770942580045,3.86411069,77.879,77.832,0.86610808]
[1770942581749,3.86411069,77.879,77.835,0.83296142]
[1770942583855,3.86411069,77.879,77.837,0.77304383]
[1770942584755,3.86411069,77.879,77.838,11.5722]
[1770942586354,3.86411069,77.879,77.838,12.49116183]
[1770942587254,14.74411069,77.888,77.843,0.91896183]
[1770942587450,3.86411069,77.887,77.843,0.91896183]
[1770942587650,3.86411069,77.887,77.851,11.5703]
[1770942587846,10.88,77.888,77.814,125.6715]
[1770942587847,10.88,77.888,77.852,0.91896183]
[1770942588048,3.86411069,77.909,77.861,0.91896183]
[1770942588748,3.86411069,77.909,77.87,11.5674]
[1770942589545,3.86411069,77.909,77.863,11.5685]
[1770942591155,3.86411069,77.909,77.869,11.5675]
[1770942593048,3.86411069,77.909,77.876,11.5666]
[1770942593562,3.86411069,77.909,77.864,0.90673499]
[1770942594858,3.86411069,77.909,77.869,11.5676]
[1770942596869,3.86411069,77.909,77.869,12.48311828]
[1770942597066,3.86411069,77.909,77.878,0.91551828]
[1770942599469,3.86411069,77.909,77.879,11.5661]
[1770942600672,4.19708205,77.923,77.882,0.9193718]
[1770942600875,23.1083,77.961,77.845,102.5]
[1770942600876,4.19708205,77.949,77.901,0.9193718]
[1770942601466,4.19708205,77.949,77.91,3.37839189]
[1770942601770,4.19708205,77.949,77.901,0.9193718]
[1770942602663,4.19708205,77.949,77.903,11.5625]
[1770942602867,4.19708205,77.949,77.904,0.69556754]
[1770942603566,4.19708205,77.949,77.91,4.07395943]
[1770942604771,4.19708205,77.949,77.91,0.69556754]
[1770942605170,4.19708205,77.949,77.9,3.37839189]
[1770942605380,4.19708205,77.939,77.89,4.05570249]
[1770942605571,4.19708205,77.939,77.891,0.6773106]
[1770942606479,4.19708205,77.937,77.891,0.6773106]
[1770942606978,3.37839189,77.92,77.87,3.37839189]
[1770942607176,4.19708205,77.919,77.871,0.71086708]
[1770942607874,4.19708205,77.919,77.872,0.71086708]
[1770942608272,4.19708205,77.919,77.881,0.81022405]
[1770942609870,4.19708205,77.919,77.884,0.81022405]
[1770942610874,4.19708205,77.919,77.886,12.04626288]
[1770942613481,4.19708205,77.919,77.886,11.565]
[1770942614982,4.19708205,77.948,77.891,0.32247421]
[1770942616478,4.19708205,77.946,77.892,11.5642]
[1770942616685,4.19708205,77.939,77.892,11.5642]
[1770942618480,3.3760109,77.94,77.884,11.5653]
[1770942618481,4.19708205,77.935,77.884,11.5653]
[1770942618784,4.19708205,77.929,77.884,11.5653]
[1770942622187,4.19708205,77.929,77.891,11.5644]
[1770942624175,4.19708205,77.929,77.897,11.5634]
[1770942624883,4.19708205,77.927,77.882,11.5657]
[1770942625486,4.19708205,77.927,77.881,0.33944859]
[1770942626285,3.3760109,77.93,77.881,0.33944859]
[1770942626286,4.19708205,77.925,77.882,11.5656]
[1770942626479,4.19708205,77.925,77.882,11.71128012]
[1770942626679,4.19708205,77.925,77.883,0.14568012]
[1770942626984,3.3760109,77.93,77.883,0.14568012]
[1770942626985,4.19708205,77.923,77.883,0.14568012]
[1770942629186,4.21284696,77.934,77.891,0.05650348]
[1770942630582,4.21284696,77.934,77.895,0.02820703]
[1770942630886,4.21284696,77.934,77.89,3.3760109]
[1770942632891,4.21284696,77.934,77.885,11.5652]
[1770942633484,4.21284696,77.934,77.891,11.5643]
[1770942634285,4.21284696,77.934,77.882,11.5656]
[1770942634685,3.3760109,77.93,77.882,11.5656]
[1770942634890,4.23078561,77.929,77.882,11.5656]
[1770942636086,4.23078561,77.929,77.889,11.5646]
[1770942639889,4.23078561,77.929,77.89,3.3760109]
[1770942640192,4.39478658,77.947,77.89,3.3760109]
[1770942640595,4.39478658,77.947,77.899,11.5631]
[1770942641300,4.39478658,77.945,77.892,11.5642]
[1770942642100,4.39478658,77.939,77.892,11.5642]
[1770942642301,4.39478658,77.939,77.898,11.5632]
[1770942649206,4.40778019,77.936,77.898,11.5632]
[1770942650009,4.40778019,77.936,77.905,11.5623]
[1770942656414,16.34807791,77.968,77.924,11.5594]
[1770942656606,4.45136725,77.985,77.894,15.99804966]
[1770942656807,4.45136725,77.985,77.94,3.3760109]
[1770942657113,4.45136725,77.985,77.93,3.3760109]
[1770942657308,3.3760109,77.99,77.934,11.558]
[1770942657309,4.45136725,77.983,77.934,11.558]
[1770942657513,4.45136725,78.015,77.95,3.3760109]
[1770942657712,4.45136725,77.999,77.95,3.3760109]
[1770942657908,4.45136725,77.999,77.953,11.5551]
[1770942658709,4.45136725,77.999,77.95,3.3760109]
[1770942658910,4.45136725,77.999,77.944,11.5565]
[1770942659124,4.45136725,77.999,77.95,3.3760109]
[1770942660623,4.45136725,77.999,77.951,11.5554]
[1770942661224,4.63328414,77.989,77.94,3.3760109]
[1770942661528,3.3760109,77.96,77.91,3.3760109]
[1770942661724,4.63328414,77.959,77.91,3.3760109]
[1770942662529,4.63328414,77.959,77.911,11.5614]
[1770942665927,4.63328414,77.959,77.919,11.5602]
[1770942667028,4.7505806,77.983,77.93,3.3760109]
[1770942667230,3.3760109,77.98,77.93,3.3760109]
[1770942667428,4.7505806,77.979,77.93,3.3760109]
[1770942667834,4.7505806,77.979,77.932,11.5582]
[1770942670031,4.7505806,77.979,77.939,11.5572]
[1770942670742,4.7505806,77.979,77.946,11.5562]
[1770942671038,4.7505806,77.979,77.93,3.3760109]
[1770942672732,4.7505806,77.979,77.94,3.3760109]
[1770942672938,3.3760109,77.99,77.94,3.3760109]
[1770942672939,8.1764155,77.99,77.94,3.3760109]
[1770942673337,4.8004046,77.989,77.94,3.3760109]
[1770942673539,4.8004046,77.989,77.95,11.5555]
[1770942676747,3.3760109,77.98,77.95,11.5555]
[1770942676948,4.8004046,77.989,77.95,11.5555]
[1770942677148,4.7963582,77.979,77.942,11.5567]
[1770942678343,4.7963582,77.979,77.93,11.5585]
[1770942678543,14.92235057,77.98,77.93,11.5585]
[1770942678544,4.76563578,77.969,77.93,11.5585]
[1770942680849,3.37105057,77.98,77.937,11.5575]
[1770942681050,4.91250345,77.982,77.937,11.5575]
[1770942682452,4.91250345,77.982,77.94,3.37105057]
[1770942682654,4.92298979,77.993,77.94,3.37105057]
[1770942683244,4.92298979,77.993,77.947,11.5559]
[1770942684548,3.37105057,77.99,77.947,11.5559]
[1770942684753,4.9243357,77.979,77.947,11.5559]
[1770942685356,4.9243357,77.979,77.939,11.5571]
[1770942686854,4.9243357,77.979,77.93,3.37105057]
[1770942686855,4.9243357,77.979,77.931,11.5583]
[1770942687456,3.37105057,77.97,77.931,11.5583]
[1770942687659,4.9243357,77.979,77.931,11.5583]
[1770942687859,4.91999495,77.977,77.931,11.5583]
[1770942688352,4.91999495,77.977,77.939,11.5572]
[1770942689858,4.91999495,77.977,77.93,11.5585]
[1770942690962,5.05888041,77.974,77.93,11.5585]
[1770942695867,5.05888041,77.974,77.939,11.5571]
[1770942696063,5.05888041,77.974,77.93,3.37105057]
[1770942696467,5.06099679,77.973,77.925,11.5593]
[1770942698273,5.06099679,77.973,77.92,3.37105057]
[1770942698472,5.07654373,77.949,77.9,3.37105057]
[1770942698874,5.07654373,77.949,77.89,3.37105057]
[1770942699068,5.07654373,77.949,77.9,3.37105057]
[1770942699770,5.07654373,77.949,77.907,11.562]
[1770942701771,5.0608678,77.947,77.907,11.562]
[1770942704174,5.07844981,77.939,77.9,11.563]
[1770942705982,5.07844981,77.939,77.9,14.93405057]
[1770942706474,5.07844981,77.939,77.9,11.563]
[1770942708379,5.14357134,77.937,77.89,3.37105057]
[1770942709482,5.14357134,77.937,77.89,14.93545057]
[1770942710483,5.14357134,77.937,77.89,11.5644]
[1770942710789,5.12597182,77.929,77.89,11.5644]
[1770942711370,102.4,77.971,77.86,15.99804966]
[1770942711371,5.12597182,77.919,77.86,15.99804966]
[1770942711579,5.12597182,77.909,77.86,3.37105057]
[1770942712275,5.12597182,77.909,77.87,3.37105057]
[1770942713876,5.12597182,77.909,77.872,11.5671]
[1770942714578,5.12597182,77.909,77.87,3.37105057]
[1770942714785,5.12597182,77.909,77.865,11.5682]
[1770942715286,5.12597182,77.909,77.822,23.1492]
[1770942715287,5.13334275,77.899,77.85,3.37105057]
[1770942715485,5.13334275,77.899,77.84,3.37105057]
[1770942715681,5.13334275,77.899,77.85,3.37105057]
[1770942716183,5.11186544,77.889,77.84,3.37105057]
[1770942717086,5.11186544,77.889,77.821,102.44]
[1770942717087,5.11186544,77.889,77.85,3.37105057]
[1770942717588,5.11186544,77.899,77.85,3.37105057]
[1770942718288,3.37105057,77.89,77.842,11.5716]
[1770942718491,5.11186544,77.899,77.86,3.37105057]
[1770942720894,5.11186544,77.899,77.861,11.5687]
[1770942722293,11.5596,77.923,77.873,11.5669]
[1770942722486,5.07868945,77.922,77.873,11.5669]
[1770942723791,5.07868945,77.919,77.873,11.5669]
[1770942726799,5.07868945,77.919,77.88,11.5659]
[1770942731997,5.07868945,77.919,77.834,15.99804966]
[1770942731998,5.07868945,77.919,77.836,4.12197477]
[1770942732199,4.135404,77.919,77.871,4.12197477]
[1770942732908,11.5606,77.917,77.871,4.12197477]
[1770942733101,3.37105057,77.91,77.871,4.12197477]
[1770942733301,4.135404,77.916,77.871,4.12197477]
[1770942733801,4.135404,77.907,77.86,4.12197477]
[1770942736708,4.135404,77.907,77.861,4.12197477]
[1770942737108,4.135404,77.907,77.863,4.12197477]
[1770942737304,4.135404,77.907,77.871,4.12197477]
[1770942739218,4.135404,77.889,77.833,4.12197477]
[1770942739407,4.135404,77.889,77.835,4.12197477]
[1770942740811,4.135404,77.884,77.836,11.5725]
[1770942742014,4.135404,77.879,77.836,11.5725]
[1770942742309,4.135404,77.869,77.826,11.574]
[1770942743016,9.01,77.879,77.841,4.12197477]
[1770942743607,4.135404,77.901,77.86,7.49956998]
[1770942743820,4.135404,77.919,77.871,4.12197477]
[1770942744319,4.135404,77.918,77.871,4.12197477]
[1770942744822,4.135404,77.916,77.872,11.5671]
[1770942749421,4.135404,77.916,77.872,15.68907477]
[1770942750123,11.561,77.914,77.872,15.68907477]
[1770942750629,11.561,77.914,77.873,4.15836947]
[1770942752122,3.88559791,77.929,77.891,4.15836947]
[1770942755924,11.558,77.935,77.891,4.15836947]
[1770942758235,3.83881364,77.941,77.9,3.37759521]
[1770942758534,3.83881364,77.941,77.901,4.18941397]
[1770942759532,11.5571,77.94,77.901,4.18941397]
[1770942760136,15.39591364,77.94,77.901,4.18941397]
[1770942760320,3.83881364,77.939,77.901,4.18941397]
[1770942762436,3.83881364,77.929,77.889,4.18941397]
[1770942763937,15.39761364,77.929,77.89,3.37759521]
[1770942764135,3.83881364,77.919,77.878,4.18941397]
[1770942764335,3.83881364,77.909,77.866,4.18941397]
[1770942764536,23.1085,77.96,77.851,4.18941397]
[1770942764537,3.83881364,77.889,77.851,4.18941397]
[1770942764736,3.37759521,77.87,77.831,4.18941397]
[1770942765234,3.37759521,77.86,77.818,4.18941397]
[1770942765735,11.5692,77.859,77.818,4.18941397]
[1770942765937,3.37759521,77.85,77.818,4.18941397]
[1770942766328,3.37759521,77.86,77.818,4.18941397]
[1770942766528,3.37759521,77.87,77.821,4.18941397]
[1770942767440,7.21640885,77.87,77.821,4.18941397]
[1770942767834,18.78390885,77.87,77.821,4.18941397]
[1770942771544,3.83881364,77.869,77.821,4.18941397]
[1770942772143,3.83881364,77.859,77.821,4.18941397]
[1770942772744,102.5,77.893,77.804,4.18941397]
[1770942772745,3.83881364,77.849,77.804,4.18941397]
[1770942773140,3.37759521,77.84,77.804,4.18941397]
[1770942773443,3.83881364,77.849,77.804,4.18941397]
[1770942774947,3.83881364,77.849,77.771,102.52]
[1770942774948,3.37759521,77.84,77.791,4.18941397]
[1770942775338,3.83881364,77.839,77.791,4.18941397]
[1770942775539,3.37759521,77.83,77.791,4.18941397]
[1770942776940,7.21640885,77.83,77.791,4.18941397]
[1770942777149,23.1301,77.887,77.78,4.18941397]
[1770942777150,3.83881364,77.819,77.78,4.18941397]
[1770942777536,3.83881364,77.832,77.784,4.18941397]
[1770942777748,3.37759521,77.83,77.784,4.18941397]
[1770942778149,3.83881364,77.829,77.784,4.18941397]
[1770942778450,3.83881364,77.819,77.772,4.18941397]
[1770942779148,3.83881364,77.819,77.773,11.5819]
[1770942779347,3.83881364,77.819,77.772,4.18941397]
[1770942779752,3.37759521,77.81,77.772,4.18941397]
[1770942780046,7.21640885,77.81,77.772,4.18941397]
[1770942780346,3.83881364,77.825,77.772,4.18941397]
[1770942780549,3.82648643,77.819,77.772,4.18941397]
[1770942780952,102.54,77.842,77.781,4.07685817]
[1770942780953,7.20408164,77.83,77.781,4.07685817]
[1770942781156,3.82648643,77.829,77.781,4.07685817]
[1770942781542,3.37759521,77.85,77.801,4.07685817]
[1770942781849,3.82648643,77.849,77.801,4.07685817]
[1770942782155,3.82648643,77.849,77.802,11.5776]
[1770942783450,3.82648643,77.839,77.788,4.07685817]
[1770942783753,3.82648643,77.829,77.788,4.07685817]
[1770942783953,3.82648643,77.819,77.775,4.07685817]
[1770942784843,3.82648643,77.819,77.778,11.5812]
[1770942785243,3.82648643,77.819,77.779,4.07685817]
[1770942785541,3.82648643,77.819,77.783,11.5804]
[1770942785743,3.82648643,77.819,77.779,4.07685817]
[1770942785942,3.82648643,77.819,77.78,11.5808]
[1770942786259,3.82648643,77.819,77.78,15.65765817]
[1770942786754,3.82648643,77.819,77.784,11.5802]
[1770942786958,3.37759521,77.83,77.784,11.5802]
[1770942787950,11.5716,77.843,77.792,4.07685817]
[1770942788454,3.37759521,77.84,77.792,4.07685817]
[1770942788859,3.37759521,77.84,77.795,4.07685817]
[1770942789051,3.37759521,77.83,77.795,4.07685817]
[1770942789558,3.37759521,77.83,77.786,11.58]
[1770942789559,3.82648643,77.829,77.786,11.58]
[1770942789856,3.37759521,77.82,77.781,4.07685817]
[1770942791459,3.37759521,77.82,77.776,11.5813]
[1770942791460,3.82648643,77.819,77.776,11.5813]
[1770942791856,7.20408164,77.81,77.767,11.5828]
[1770942792057,3.82648643,77.809,77.762,4.07685817]
[1770942792259,3.82648643,77.809,77.714,23.1813]
[1770942792260,3.82648643,77.809,77.728,4.07685817]
[1770942792458,3.37759521,77.78,77.732,4.07685817]
[1770942793061,3.82648643,77.779,77.732,4.07685817]
[1770942793551,3.37759521,77.78,77.732,4.07685817]
[1770942794757,3.37759521,77.79,77.741,4.07685817]
[1770942794956,3.82648643,77.789,77.741,4.07685817]
[1770942795156,3.82648643,77.789,77.721,4.07685817]
[1770942796159,3.82648643,77.777,77.721,4.07685817]
[1770942796653,3.82648643,77.775,77.707,13.82972128]
[1770942796862,3.82648643,77.769,77.707,11.5917]
[1770942797163,7.56387644,77.77,77.638,180.4761]
[1770942797164,3.82648643,77.757,77.697,2.23833797]
[1770942797351,7.56387644,77.8,77.679,4.07685817]
[1770942797352,3.82648643,77.739,77.679,4.07685817]
[1770942797653,3.82648643,77.759,77.679,4.07685817]
[1770942797853,3.82648643,77.759,77.704,4.07685817]
[1770942798558,3.82648643,77.757,77.704,4.07685817]
[1770942798954,3.82648643,77.756,77.704,4.07685817]
[1770942800051,3.82648643,77.756,77.706,11.5918]
[1770942800254,114.2025,77.77,77.707,4.07685817]
[1770942800464,102.62,77.77,77.707,4.07685817]
[1770942800662,3.82648643,77.771,77.707,4.07685817]
[1770942800864,3.82648643,77.771,77.725,4.07685817]
[1770942803465,3.82648643,77.77,77.702,4.07685817]
[1770942803963,7.57221665,77.78,77.702,4.07685817]
[1770942803964,3.82648643,77.765,77.702,4.07685817]
[1770942804767,3.82648643,77.762,77.706,4.07685817]
[1770942805364,3.82648643,77.762,77.708,4.07685817]
[1770942807469,3.82648643,77.762,77.71,4.07685817]
[1770942808159,3.82648643,77.762,77.714,4.07685817]
[1770942808761,3.82648643,77.775,77.728,11.5886]
[1770942808969,3.82648643,77.775,77.729,4.07685817]
[1770942811062,3.82648643,77.775,77.724,11.5891]
[1770942811263,3.82648643,77.775,77.725,4.10918071]
[1770942811666,15.77468944,77.773,77.725,4.10918071]
[1770942811868,4.19268944,77.773,77.727,4.10918071]
[1770942813169,3.96873054,77.767,77.727,4.10918071]
[1770942813371,3.96873054,77.782,77.727,4.10918071]
[1770942814869,3.96873054,77.779,77.727,4.10918071]
[1770942815970,3.38964396,77.8,77.751,4.14245435]
[1770942816174,3.96873054,77.808,77.751,4.14245435]
[1770942816875,11.5773,77.804,77.76,3.38964396]
[1770942817081,3.96873054,77.808,77.76,3.38964396]
[1770942817472,3.96873054,77.808,77.76,7.53209831]
[1770942817778,106.06964396,77.82,77.771,4.14245435]
[1770942818377,3.38964396,77.82,77.771,4.14245435]
[1770942818568,3.88321102,77.821,77.78,3.38964396]
[1770942818770,3.88321102,77.821,77.781,4.14245435]
[1770942819175,3.54969844,77.819,77.77,3.38964396]
[1770942819978,3.54969844,77.819,77.771,4.14245435]
[1770942820672,3.54969844,77.819,77.772,11.5821]
[1770942820875,3.54969844,77.819,77.772,15.72455435]
[1770942821075,3.54969844,77.819,77.773,4.14245435]
[1770942821272,3.71129709,77.817,77.773,4.14245435]
[1770942821475,3.71129709,77.817,77.765,11.5831]
[1770942821679,3.71129709,77.817,77.759,4.14245435]
[1770942821881,3.71129709,77.806,77.759,4.14245435]
[1770942822583,3.71397065,77.795,77.744,11.5861]
[1770942823480,3.71397065,77.795,77.73,7.55715989]
[1770942823481,3.71397065,77.795,77.749,15.72785435]
[1770942823681,3.71397065,77.795,77.75,4.14245435]
[1770942824776,3.71397065,77.795,77.751,11.5851]
[1770942824977,3.71397065,77.795,77.752,4.14245435]
[1770942828289,102.64,77.813,77.72,4.14245435]
[1770942828290,3.96734319,77.793,77.72,4.14245435]
[1770942828681,3.96734319,77.773,77.724,15.73165435]
[1770942828883,3.96734319,77.773,77.691,4.14245435]
[1770942829979,102.64,77.78,77.716,4.14245435]
[1770942830380,3.96734319,77.787,77.716,4.14245435]
[1770942830588,11.52589043,77.8,77.716,4.14245435]
[1770942830789,3.96873054,77.799,77.716,4.14245435]
[1770942831782,11.5785,77.797,77.746,4.14245435]
[1770942832987,11.5791,77.793,77.746,4.14245435]
[1770942833888,15.54853054,77.788,77.746,4.14245435]
[1770942835588,3.96873054,77.788,77.746,4.14245435]
[1770942837889,3.96873054,77.788,77.748,11.5856]
[1770942839293,3.96873054,77.788,77.746,4.14245435]
[1770942840394,3.96873054,77.785,77.738,11.5871]
[1770942840990,4.08801799,77.777,77.734,4.14245435]
[1770942841189,4.08801799,77.759,77.721,4.14212316]
[1770942841387,4.08801799,77.759,77.675,23.90874028]
[1770942841388,4.08754077,77.772,77.731,4.14212316]
[1770942841586,110.13715569,77.8,77.741,4.14212316]
[1770942841893,4.08754077,77.799,77.741,4.14212316]
[1770942842796,4.13035009,77.797,77.749,4.14212316]
[1770942843095,3.38961492,77.79,77.749,4.14212316]
[1770942843595,4.13035009,77.797,77.749,4.14212316]
[1770942844495,4.13035009,77.807,77.752,4.14212316]
[1770942844888,4.13035009,77.807,77.76,3.38961492]
[1770942845689,11.5773,77.804,77.752,4.14212316]
[1770942845896,3.38961492,77.8,77.752,4.14212316]
[1770942846290,11.5782,77.799,77.754,11.5846]
[1770942846493,4.13035009,77.803,77.76,3.38961492]
[1770942847294,11.5778,77.801,77.76,3.38961492]
[1770942847598,4.13035009,77.816,77.771,4.14212316]
[1770942847994,4.13035009,77.809,77.771,4.14212316]
[1770942850496,4.13035009,77.807,77.761,11.5837]
[1770942851101,4.13035009,77.807,77.768,11.5827]
[1770942851398,4.13035009,77.807,77.76,3.38961492]
[1770942851399,4.13035009,77.807,77.771,4.14212316]
[1770942851595,4.13035009,77.807,77.772,11.582]
[1770942851991,7.11,77.818,77.773,4.14212316]
[1770942852190,7.11,77.818,77.775,4.14212316]
[1770942852191,11.5755,77.817,77.775,4.14212316]
[1770942852996,7.11,77.818,77.78,3.38961492]
[1770942853190,7.11,77.818,77.781,4.14212316]
[1770942855102,7.11,77.818,77.78,11.5809]
[1770942855103,7.11,77.818,77.784,4.14212316]
[1770942855702,7.11,77.818,77.787,4.14212316]
[1770942858101,4.13035009,77.817,77.773,15.72392316]
[1770942858601,4.13035009,77.817,77.776,11.5814]
[1770942858898,3.38635952,77.81,77.776,11.5814]
[1770942859098,4.13035009,77.809,77.765,11.583]
[1770942859500,4.13035009,77.809,77.766,4.14212316]
[1770942859904,7.11,77.818,77.777,4.14212316]
[1770942860098,9.322e-05,77.818,77.791,4.14212316]
[1770942861202,9.322e-05,77.818,77.779,4.14212316]
[1770942861407,9.322e-05,77.818,77.78,3.38635952]
[1770942861603,9.322e-05,77.818,77.78,4.14212316]
[1770942863710,4.13044331,77.818,77.78,4.14212316]
[1770942863909,4.13044331,77.818,77.773,11.5818]
[1770942864303,3.38635952,77.81,77.768,4.14212316]
[1770942864610,4.13035009,77.809,77.768,4.14212316]
[1770942865602,4.13035009,77.805,77.756,4.14212316]
[1770942865809,4.13035009,77.799,77.756,4.14212316]
[1770942866909,11.5774,77.804,77.762,4.14212316]
[1770942867312,15.70775009,77.804,77.762,4.14212316]
[1770942867511,11.5778,77.801,77.762,4.14212316]
[1770942867702,3.38635952,77.8,77.762,4.14212316]
[1770942869206,11.5778,77.801,77.762,4.14212316]
[1770942871412,11.5789,77.794,77.754,11.5846]
[1770942871816,11.5789,77.794,77.755,4.12696429]
[1770942872006,11.5789,77.794,77.75,3.38635952]
[1770942872007,3.38635952,77.8,77.756,15.71146429]
[1770942872511,15.69710275,77.798,77.756,4.12696429]
[1770942872711,3.38635952,77.79,77.756,4.12696429]
[1770942872916,4.11880275,77.798,77.756,4.12696429]
[1770942873713,15.69710275,77.798,77.756,4.12696429]
[1770942873908,11.5783,77.798,77.756,4.12696429]
[1770942874113,4.04330684,77.797,77.756,4.12696429]
[1770942874516,15.62190684,77.796,77.756,4.12696429]
[1770942874716,7.42966636,77.79,77.756,4.12696429]
[1770942875816,4.04330684,77.788,77.741,3.85582175]
[1770942876017,3.38635952,77.78,77.741,3.85582175]
[1770942876608,11.5803,77.784,77.743,3.85582175]
[1770942876814,4.04330684,77.788,77.751,3.85582175]
[1770942886634,4.04330684,77.81,77.761,3.85582175]
[1770942886830,7.42966636,77.81,77.761,3.85582175]
[1770942887534,4.04330684,77.837,77.791,3.85582175]
[1770942887833,4.04330684,77.85,77.801,3.85582175]
[1770942888732,4.04330684,77.85,77.803,3.85582175]
[1770942888931,4.04330684,77.85,77.811,3.85582175]
[1770942889132,4.04330684,77.867,77.821,3.85582175]
[1770942890126,11.5688,77.862,77.821,3.85582175]
[1770942890328,4.04330684,77.879,77.831,3.85582175]
[1770942890528,3.38635952,77.89,77.841,3.85582175]
[1770942890727,4.04330684,77.892,77.85,7.24218127]
[1770942891729,4.04330684,77.905,77.861,3.85582175]
[1770942891933,3.38635952,77.9,77.861,3.85582175]
[1770942892133,4.04330684,77.899,77.85,3.38635952]
[1770942892434,4.04330684,77.899,77.851,3.85582175]
[1770942892928,3.38635952,77.89,77.84,3.38635952]
[1770942893134,4.04330684,77.889,77.84,3.38635952]
[1770942893327,4.04330684,77.889,77.841,3.85582175]
[1770942893532,4.04330684,77.889,77.85,3.38635952]
[1770942894237,4.04330684,77.903,77.86,3.38635952]
[1770942894534,4.04330684,77.899,77.851,3.85582175]
[1770942895938,4.04330684,77.899,77.86,3.38635952]
[1770942897040,4.04330684,77.899,77.851,3.85582175]
[1770942898938,4.04330684,77.899,77.86,3.38635952]
[1770942899635,4.04330684,77.899,77.861,3.85582175]
[1770942900342,4.04330684,77.912,77.871,3.85582175]
[1770942902542,3.839319,77.909,77.86,3.38635952]
[1770942902736,3.839319,77.909,77.795,39.1190721]
[1770942902737,3.839319,77.899,77.85,3.38635952]
[1770942902937,3.839319,77.899,77.851,4.12423337]
[1770942904041,3.839319,77.899,77.86,7.51059289]
[1770942904242,3.839319,77.899,77.86,4.12423337]
[1770942904745,3.839319,77.899,77.86,7.51059289]
[1770942907146,3.839319,77.899,77.86,4.12423337]
[1770942910550,11.5635,77.898,77.86,4.12423337]
[1770942913249,11.5635,77.898,77.861,4.12423337]
[1770942914055,11.5623,77.906,77.871,4.12423337]
[1770942915750,11.5629,77.902,77.871,4.12423337]
[1770942921859,3.839319,77.901,77.86,4.12423337]
[1770942922158,3.839319,77.901,77.861,4.12423337]
[1770942923960,11.5632,77.9,77.861,4.12423337]
[1770942925056,3.839319,77.892,77.861,4.12423337]
[1770942927962,3.839319,77.888,77.84,3.37777896]
[1770942928163,3.839319,77.869,77.828,4.12423337]
[1770942928368,3.839319,77.869,77.82,3.37777896]
[1770942928669,3.839319,77.859,77.817,4.12423337]
[1770942931863,3.839319,77.859,77.82,3.37777896]
[1770942932064,3.839319,77.859,77.821,3.87882276]
[1770942933868,3.86574029,77.87,77.831,3.88366931]
[1770942934066,11.5671,77.873,77.831,3.88366931]
[1770942935068,3.86574029,77.889,77.851,3.88366931]
[1770942945683,3.86574029,77.889,77.855,3.88366931]
[1770942946579,3.86574029,77.889,77.86,3.37777896]
[1770942946981,3.86574029,77.889,77.855,3.88366931]
[1770942948391,3.86574029,77.889,77.856,11.5695]
[1770942950289,3.86574029,77.889,77.857,3.88366931]
[1770942952588,3.86574029,77.889,77.858,11.5692]
[1770942952990,3.86574029,77.889,77.859,3.88366931]
[1770942953288,3.86574029,77.889,77.86,3.37777896]
[1770942953889,3.86574029,77.889,77.859,3.88366931]
[1770942956193,3.86574029,77.889,77.86,3.37777896]
[1770942956393,3.86574029,77.899,77.863,11.5685]
[1770942957293,8.96,77.898,77.863,11.5685]
[1770942957488,3.86574029,77.897,77.863,11.5685]